[Event "Early-Titled-Tuesday-Blitz-August-29-2023"]
[Site "Chess.com"]
[Date "2023.08.29"]
[Round "2"]
[White "laskakid"]
[Black "Kubas1010"]
[Result "0-1"]
[WhiteElo "2164"]
[BlackElo "2687"]
[TimeControl "180+1"]
[EndTime "8:18:12 PDT"]
[Termination "Kubas1010 won on time"]

1. d4 {[%clk 0:03:00.9]} 1... Nf6 {[%clk 0:02:56]} 2. c4 {[%clk 0:03:00.6]} 2...
e6 {[%clk 0:02:52.7]} 3. Nc3 {[%clk 0:03:00.3]} 3... Bb4 {[%clk 0:02:50.7]} 4.
Qc2 {[%clk 0:03:00.4]} 4... O-O {[%clk 0:02:47.5]} 5. Nf3 {[%clk 0:03:00]} 5...
c5 {[%clk 0:02:37.1]} 6. dxc5 {[%clk 0:02:58.1]} 6... Na6 {[%clk 0:02:36.5]} 7.
g3 {[%clk 0:02:57.3]} 7... Nxc5 {[%clk 0:02:35]} 8. Bg2 {[%clk 0:02:57.2]} 8...
Nce4 {[%clk 0:02:34.4]} 9. O-O {[%clk 0:02:53.9]} 9... Bxc3 {[%clk 0:02:33.4]}
10. bxc3 {[%clk 0:02:53.1]} 10... d5 {[%clk 0:02:33.9]} 11. cxd5 {[%clk
0:02:46.5]} 11... exd5 {[%clk 0:02:33.7]} 12. Bf4 {[%clk 0:02:39.3]} 12... Be6
{[%clk 0:01:52.9]} 13. Qb2 {[%clk 0:02:13.7]} 13... Qe7 {[%clk 0:01:48.8]} 14.
Rab1 {[%clk 0:02:09.1]} 14... b6 {[%clk 0:01:46.6]} 15. Nd4 {[%clk 0:02:03.5]}
15... Rac8 {[%clk 0:01:44.1]} 16. Rfc1 {[%clk 0:01:56.2]} 16... Rc4 {[%clk
0:01:18.9]} 17. Nb5 {[%clk 0:01:43]} 17... Rfc8 {[%clk 0:01:15.8]} 18. Be5
{[%clk 0:01:28.8]} 18... a6 {[%clk 0:01:07.7]} 19. Na3 {[%clk 0:01:15.8]} 19...
Ra4 {[%clk 0:00:55.2]} 20. Nc2 {[%clk 0:01:04.8]} 20... b5 {[%clk 0:00:54.2]}
21. Nd4 {[%clk 0:00:54.3]} 21... Bd7 {[%clk 0:00:45]} 22. Bf4 {[%clk 0:00:52.1]}
22... Rac4 {[%clk 0:00:36.9]} 23. Bd2 {[%clk 0:00:44.2]} 23... Ng4 {[%clk
0:00:23.8]} 24. Be1 {[%clk 0:00:39.3]} 24... Ne5 {[%clk 0:00:22.9]} 25. Bxe4
{[%clk 0:00:29.8]} 25... dxe4 {[%clk 0:00:22.9]} 26. Bd2 {[%clk 0:00:30]} 26...
h5 {[%clk 0:00:19.6]} 27. Kg2 {[%clk 0:00:28.9]} 27... h4 {[%clk 0:00:20]} 28.
Bf4 {[%clk 0:00:27.5]} 28... h3+ {[%clk 0:00:19.9]} 29. Kg1 {[%clk 0:00:26.7]}
29... Ng4 {[%clk 0:00:17.9]} 30. e3 {[%clk 0:00:22]} 30... g5 {[%clk 0:00:16.9]}
31. Qe2 {[%clk 0:00:16.7]} 31... gxf4 {[%clk 0:00:16.3]} 32. exf4 {[%clk
0:00:17]} 32... Nf6 {[%clk 0:00:15.7]} 33. Rb2 {[%clk 0:00:12.8]} 33... Re8
{[%clk 0:00:13.7]} 34. Rd2 {[%clk 0:00:12.2]} 34... Bg4 {[%clk 0:00:13.8]} 35.
Qe3 {[%clk 0:00:11.6]} 35... b4 {[%clk 0:00:12.6]} 36. f5 {[%clk 0:00:11.4]}
36... Nd5 {[%clk 0:00:10.6]} 37. Qh6 {[%clk 0:00:09.6]} 37... Qf6 {[%clk
0:00:10.7]} 38. Qxf6 {[%clk 0:00:06.1]} 38... Nxf6 {[%clk 0:00:11.6]} 39. Rb2
{[%clk 0:00:05.3]} 39... Rec8 {[%clk 0:00:11]} 0-1

[Event "Early-Titled-Tuesday-Blitz-August-29-2023"]
[Site "Chess.com"]
[Date "2023.08.29"]
[Round "2"]
[White "dosto07"]
[Black "yuki_chess123"]
[Result "1-0"]
[WhiteElo "2471"]
[BlackElo "2204"]
[TimeControl "180+1"]
[EndTime "8:18:13 PDT"]
[Termination "dosto07 won by resignation"]

1. e4 {[%clk 0:02:55.5]} 1... c5 {[%clk 0:02:57.9]} 2. Nf3 {[%clk 0:02:54.7]}
2... Nc6 {[%clk 0:02:57.6]} 3. Bb5 {[%clk 0:02:54.6]} 3... Na5 {[%clk 0:02:57]}
4. O-O {[%clk 0:02:52.2]} 4... e6 {[%clk 0:02:56.2]} 5. Re1 {[%clk 0:02:49.5]}
5... a6 {[%clk 0:02:56.5]} 6. Bf1 {[%clk 0:02:48.9]} 6... d6 {[%clk 0:02:55.5]}
7. c3 {[%clk 0:02:48.8]} 7... Nf6 {[%clk 0:02:51.8]} 8. d4 {[%clk 0:02:48]} 8...
cxd4 {[%clk 0:02:50.6]} 9. cxd4 {[%clk 0:02:48]} 9... Be7 {[%clk 0:02:50.5]} 10.
Nc3 {[%clk 0:02:45]} 10... O-O {[%clk 0:02:49.3]} 11. Bg5 {[%clk 0:02:38.8]}
11... b5 {[%clk 0:02:48.4]} 12. a3 {[%clk 0:02:34.4]} 12... Bb7 {[%clk
0:02:47.4]} 13. Qe2 {[%clk 0:02:34.2]} 13... Nc4 {[%clk 0:02:38.8]} 14. Rad1
{[%clk 0:02:29.8]} 14... Nh5 {[%clk 0:02:29.7]} 15. Bc1 {[%clk 0:02:25.9]} 15...
Rc8 {[%clk 0:02:19.6]} 16. Rd3 {[%clk 0:02:09.5]} 16... Qa5 {[%clk 0:01:46.5]}
17. Nd2 {[%clk 0:02:06.3]} 17... Nf6 {[%clk 0:01:41.7]} 18. Nxc4 {[%clk
0:02:04.5]} 18... bxc4 {[%clk 0:01:41.6]} 19. Rh3 {[%clk 0:02:00.9]} 19... e5
{[%clk 0:01:38.5]} 20. d5 {[%clk 0:01:58.2]} 20... Rfe8 {[%clk 0:01:31.6]} 21.
g4 {[%clk 0:01:28.8]} 21... Nd7 {[%clk 0:01:30.8]} 22. g5 {[%clk 0:01:27.3]}
22... Nf8 {[%clk 0:01:29.9]} 23. Qh5 {[%clk 0:01:20.2]} 23... Qd8 {[%clk
0:01:28.4]} 24. Be2 {[%clk 0:01:17.8]} 24... Rc7 {[%clk 0:01:27.2]} 25. Bg4
{[%clk 0:01:16.7]} 25... Bc8 {[%clk 0:01:26.9]} 26. Bf5 {[%clk 0:01:15.8]} 26...
g6 {[%clk 0:01:23.1]} 27. Qg4 {[%clk 0:01:08.8]} 27... gxf5 {[%clk 0:01:18]} 28.
exf5 {[%clk 0:01:09]} 28... Qd7 {[%clk 0:01:18.3]} 29. Rf3 {[%clk 0:00:56.1]}
29... Bd8 {[%clk 0:01:07.4]} 30. Ne4 {[%clk 0:00:54.6]} 30... Kh8 {[%clk
0:01:05.6]} 31. Qh5 {[%clk 0:00:52.6]} 31... Rb7 {[%clk 0:00:47.9]} 32. h3
{[%clk 0:00:40.1]} 32... Rb3 {[%clk 0:00:46.7]} 33. Ree3 {[%clk 0:00:39.9]}
33... Rxe3 {[%clk 0:00:46]} 34. Bxe3 {[%clk 0:00:38]} 34... Qc7 {[%clk
0:00:16.5]} 35. Qh6 {[%clk 0:00:36.6]} 35... c3 {[%clk 0:00:12.2]} 36. bxc3
{[%clk 0:00:22.3]} 36... Nd7 {[%clk 0:00:11.2]} 37. g6 {[%clk 0:00:15.9]} 37...
fxg6 {[%clk 0:00:10.7]} 38. fxg6 {[%clk 0:00:15.9]} 38... Nc5 {[%clk 0:00:11]}
39. Rf7 {[%clk 0:00:15.3]} 39... Qxf7 {[%clk 0:00:09.9]} 40. gxf7 {[%clk
0:00:14.9]} 40... Rg8+ {[%clk 0:00:08.2]} 41. fxg8=Q+ {[%clk 0:00:14.8]} 41...
Kxg8 {[%clk 0:00:09.1]} 42. Nxc5 {[%clk 0:00:14.2]} 42... dxc5 {[%clk
0:00:07.8]} 43. Bxc5 {[%clk 0:00:14.8]} 1-0

[Event "Early-Titled-Tuesday-Blitz-August-29-2023"]
[Site "Chess.com"]
[Date "2023.08.29"]
[Round "2"]
[White "gueraumasague"]
[Black "baki83"]
[Result "0-1"]
[WhiteElo "2556"]
[BlackElo "2831"]
[TimeControl "180+1"]
[EndTime "8:18:14 PDT"]
[Termination "baki83 won by resignation"]

1. e4 {[%clk 0:03:00.9]} 1... c5 {[%clk 0:02:59.6]} 2. Nc3 {[%clk 0:03:01.6]}
2... Nc6 {[%clk 0:02:59]} 3. Bb5 {[%clk 0:03:02.3]} 3... Nd4 {[%clk 0:02:58.6]}
4. Nf3 {[%clk 0:03:01.9]} 4... Nxb5 {[%clk 0:02:57.9]} 5. Nxb5 {[%clk
0:03:02.8]} 5... a6 {[%clk 0:02:57.2]} 6. Nc3 {[%clk 0:03:02.9]} 6... b5 {[%clk
0:02:56.7]} 7. O-O {[%clk 0:02:59.4]} 7... Bb7 {[%clk 0:02:56.3]} 8. Re1 {[%clk
0:02:59.9]} 8... e6 {[%clk 0:02:52.1]} 9. d4 {[%clk 0:02:59.5]} 9... cxd4 {[%clk
0:02:46.6]} 10. Qxd4 {[%clk 0:02:59.4]} 10... Rc8 {[%clk 0:02:35.8]} 11. Bg5
{[%clk 0:02:53.2]} 11... f6 {[%clk 0:02:25.3]} 12. Bh4 {[%clk 0:02:26.4]} 12...
Ne7 {[%clk 0:02:17.9]} 13. Rad1 {[%clk 0:02:23.6]} 13... Ng6 {[%clk 0:01:42.7]}
14. Bg3 {[%clk 0:02:19.9]} 14... e5 {[%clk 0:01:37.6]} 15. Qd3 {[%clk
0:01:56.3]} 15... Bb4 {[%clk 0:01:36.2]} 16. h4 {[%clk 0:01:55.6]} 16... Bxc3
{[%clk 0:01:29.3]} 17. bxc3 {[%clk 0:01:56.5]} 17... h5 {[%clk 0:01:25.1]} 18.
Rb1 {[%clk 0:01:09.8]} 18... Qc7 {[%clk 0:00:52.6]} 19. Red1 {[%clk 0:01:04.5]}
19... O-O {[%clk 0:00:41.1]} 20. Nd2 {[%clk 0:00:18.5]} 20... Qxc3 {[%clk
0:00:21.2]} 21. Qe2 {[%clk 0:00:14.2]} 21... Bc6 {[%clk 0:00:16.6]} 22. Qxh5
{[%clk 0:00:14.1]} 22... Nh8 {[%clk 0:00:12.5]} 23. Qg4 {[%clk 0:00:11.6]} 23...
Qxc2 {[%clk 0:00:11.6]} 24. Rbc1 {[%clk 0:00:05.9]} 24... Qb2 {[%clk 0:00:10.8]}
25. Nf3 {[%clk 0:00:04.7]} 25... Rf7 {[%clk 0:00:09]} 26. h5 {[%clk 0:00:04.3]}
26... Rcf8 {[%clk 0:00:07.8]} 27. h6 {[%clk 0:00:04.5]} 27... g6 {[%clk
0:00:07.3]} 28. Nh4 {[%clk 0:00:04.4]} 28... Kh7 {[%clk 0:00:07.3]} 29. f4
{[%clk 0:00:03.6]} 29... f5 {[%clk 0:00:04.3]} 30. Qg5 {[%clk 0:00:03.7]} 30...
Bxe4 {[%clk 0:00:03.3]} 31. fxe5 {[%clk 0:00:03.4]} 31... f4 {[%clk 0:00:03.1]}
32. Bf2 {[%clk 0:00:03.6]} 32... f3 {[%clk 0:00:03.5]} 33. gxf3 {[%clk
0:00:02.1]} 33... Bxf3 {[%clk 0:00:03.4]} 34. Nxf3 {[%clk 0:00:02.5]} 34... Rxf3
{[%clk 0:00:02.9]} 35. Rxd7+ {[%clk 0:00:03.2]} 35... R3f7 {[%clk 0:00:03.2]}
36. Rxf7+ {[%clk 0:00:01.4]} 36... Nxf7 {[%clk 0:00:03.4]} 37. Rf1 {[%clk
0:00:02.3]} 37... Nxg5 {[%clk 0:00:03.1]} 0-1

[Event "Early-Titled-Tuesday-Blitz-August-29-2023"]
[Site "Chess.com"]
[Date "2023.08.29"]
[Round "2"]
[White "Good_Knight_Kiss"]
[Black "DanilNajdin"]
[Result "0-1"]
[WhiteElo "2359"]
[BlackElo "2542"]
[TimeControl "180+1"]
[EndTime "8:18:15 PDT"]
[Termination "DanilNajdin won on time"]

1. e4 {[%clk 0:03:00.9]} 1... g6 {[%clk 0:02:56.4]} 2. d4 {[%clk 0:03:00.9]}
2... c6 {[%clk 0:02:55.7]} 3. Nc3 {[%clk 0:03:00.5]} 3... d5 {[%clk 0:02:55.9]}
4. h3 {[%clk 0:02:58]} 4... Bg7 {[%clk 0:02:55.5]} 5. Nf3 {[%clk 0:02:57.2]}
5... Nf6 {[%clk 0:02:55.2]} 6. Bd3 {[%clk 0:02:48.1]} 6... dxe4 {[%clk 0:02:54]}
7. Nxe4 {[%clk 0:02:47.3]} 7... Nxe4 {[%clk 0:02:54.6]} 8. Bxe4 {[%clk
0:02:48.2]} 8... Nd7 {[%clk 0:02:55.1]} 9. c3 {[%clk 0:02:45.7]} 9... Nf6 {[%clk
0:02:54]} 10. Bc2 {[%clk 0:02:43.4]} 10... O-O {[%clk 0:02:53.6]} 11. O-O {[%clk
0:02:43.3]} 11... Qc7 {[%clk 0:02:50.5]} 12. Re1 {[%clk 0:02:39.6]} 12... c5
{[%clk 0:02:43.8]} 13. dxc5 {[%clk 0:02:36.6]} 13... Qxc5 {[%clk 0:02:40.7]} 14.
Be3 {[%clk 0:02:36.8]} 14... Qc7 {[%clk 0:02:39.9]} 15. Bd4 {[%clk 0:02:31.7]}
15... Be6 {[%clk 0:02:11.3]} 16. Ng5 {[%clk 0:02:24.2]} 16... Bc4 {[%clk
0:02:00.4]} 17. Bb3 {[%clk 0:01:59]} 17... Rad8 {[%clk 0:01:55.5]} 18. Bxc4
{[%clk 0:01:52.1]} 18... Qxc4 {[%clk 0:01:55.1]} 19. Rxe7 {[%clk 0:01:44.2]}
19... Nd5 {[%clk 0:01:52.6]} 20. Rxb7 {[%clk 0:01:39.8]} 20... Nf4 {[%clk
0:01:48]} 21. Qf3 {[%clk 0:01:17.7]} 21... Ne2+ {[%clk 0:01:07.3]} 22. Kh1
{[%clk 0:01:16.8]} 22... Nxd4 {[%clk 0:01:01.6]} 23. cxd4 {[%clk 0:01:15.8]}
23... Bxd4 {[%clk 0:01:01.3]} 24. Re1 {[%clk 0:00:44.8]} 24... h6 {[%clk
0:00:57.5]} 25. Ne4 {[%clk 0:00:37.7]} 25... Kg7 {[%clk 0:00:57.2]} 26. b3
{[%clk 0:00:27]} 26... Qd5 {[%clk 0:00:56.9]} 27. Re7 {[%clk 0:00:16.8]} 27...
Rfe8 {[%clk 0:00:50.8]} 28. Nd2 {[%clk 0:00:07.9]} 28... Rxe7 {[%clk 0:00:43.3]}
29. Rxe7 {[%clk 0:00:08.8]} 29... Qxf3 {[%clk 0:00:19.2]} 30. Nxf3 {[%clk
0:00:09.7]} 30... Bxf2 {[%clk 0:00:19.8]} 31. g4 {[%clk 0:00:06]} 31... Kf6
{[%clk 0:00:17.7]} 32. Re2 {[%clk 0:00:05.9]} 32... Bb6 {[%clk 0:00:16.8]} 33.
Kg2 {[%clk 0:00:05.2]} 33... Rd3 {[%clk 0:00:16.5]} 34. Rc2 {[%clk 0:00:02.8]}
34... Re3 {[%clk 0:00:12.6]} 35. Rd2 {[%clk 0:00:02.5]} 35... Ke6 {[%clk
0:00:10.5]} 36. h4 {[%clk 0:00:02.1]} 36... Re4 {[%clk 0:00:08.3]} 0-1

[Event "Early-Titled-Tuesday-Blitz-August-29-2023"]
[Site "Chess.com"]
[Date "2023.08.29"]
[Round "2"]
[White "jk13"]
[Black "Beca95"]
[Result "1-0"]
[WhiteElo "2656"]
[BlackElo "2963"]
[TimeControl "180+1"]
[EndTime "8:18:16 PDT"]
[Termination "jk13 won by resignation"]

1. e4 {[%clk 0:02:58.3]} 1... c5 {[%clk 0:03:00.9]} 2. c3 {[%clk 0:02:58.2]}
2... d5 {[%clk 0:03:00.5]} 3. exd5 {[%clk 0:02:59.1]} 3... Nf6 {[%clk
0:03:00.5]} 4. d4 {[%clk 0:03:00]} 4... Nxd5 {[%clk 0:02:59.3]} 5. Nf3 {[%clk
0:03:00.7]} 5... e6 {[%clk 0:02:59.1]} 6. Bd3 {[%clk 0:03:00]} 6... cxd4 {[%clk
0:02:58.3]} 7. cxd4 {[%clk 0:02:59.5]} 7... Bb4+ {[%clk 0:02:56.9]} 8. Nbd2
{[%clk 0:02:58.5]} 8... Nc6 {[%clk 0:02:52.4]} 9. O-O {[%clk 0:02:58.6]} 9...
O-O {[%clk 0:02:39.1]} 10. Ne4 {[%clk 0:02:58.7]} 10... Be7 {[%clk 0:02:38.8]}
11. a3 {[%clk 0:02:58.4]} 11... b6 {[%clk 0:02:38.9]} 12. Re1 {[%clk 0:02:55.6]}
12... Bb7 {[%clk 0:02:39.3]} 13. Bb1 {[%clk 0:02:34.1]} 13... a5 {[%clk
0:02:05.8]} 14. Qd3 {[%clk 0:02:25.7]} 14... g6 {[%clk 0:01:53.7]} 15. Bh6
{[%clk 0:02:25.2]} 15... Re8 {[%clk 0:01:53.8]} 16. Ba2 {[%clk 0:02:23.9]} 16...
Ba6 {[%clk 0:01:53.2]} 17. Qd2 {[%clk 0:02:20.7]} 17... Rc8 {[%clk 0:01:52.7]}
18. Rad1 {[%clk 0:02:17.3]} 18... Bf8 {[%clk 0:01:52.2]} 19. h4 {[%clk
0:02:15.4]} 19... Bg7 {[%clk 0:01:50.8]} 20. h5 {[%clk 0:02:10.3]} 20... Rc7
{[%clk 0:01:50]} 21. Bxg7 {[%clk 0:01:37.7]} 21... Kxg7 {[%clk 0:01:48.6]} 22.
Bxd5 {[%clk 0:01:36.1]} 22... exd5 {[%clk 0:01:46.9]} 23. h6+ {[%clk 0:01:32.6]}
23... Kh8 {[%clk 0:01:45.9]} 24. Nf6 {[%clk 0:01:24.4]} 24... Re6 {[%clk
0:01:38.6]} 25. Qf4 {[%clk 0:00:36.6]} 25... Be2 {[%clk 0:01:36.5]} 26. Rxe2
{[%clk 0:00:23.6]} 26... Rxe2 {[%clk 0:01:35]} 27. Ng5 {[%clk 0:00:22.8]} 27...
Rce7 {[%clk 0:01:27]} 28. Rd3 {[%clk 0:00:18.1]} 28... Re1+ {[%clk 0:01:26.8]}
29. Kh2 {[%clk 0:00:18.2]} 29... Qc7 {[%clk 0:01:27.2]} 30. Qxc7 {[%clk
0:00:16.2]} 30... Rxc7 {[%clk 0:01:28.1]} 31. Rc3 {[%clk 0:00:15.7]} 31... Re6
{[%clk 0:01:06.6]} 32. Nxd5 {[%clk 0:00:15.9]} 32... Rc8 {[%clk 0:00:44.4]} 33.
Nxe6 {[%clk 0:00:15.5]} 33... fxe6 {[%clk 0:00:45]} 34. Nxb6 {[%clk 0:00:16]}
34... Rc7 {[%clk 0:00:45.4]} 35. d5 {[%clk 0:00:16.2]} 35... exd5 {[%clk
0:00:44.6]} 36. Nxd5 {[%clk 0:00:17.1]} 36... Rc8 {[%clk 0:00:44.7]} 37. b4
{[%clk 0:00:17.5]} 37... axb4 {[%clk 0:00:43.5]} 38. axb4 {[%clk 0:00:18]} 38...
Na7 {[%clk 0:00:43.7]} 39. Rxc8+ {[%clk 0:00:17.7]} 39... Nxc8 {[%clk
0:00:44.6]} 40. Nf6 {[%clk 0:00:17.7]} 40... g5 {[%clk 0:00:40.6]} 41. Kg3
{[%clk 0:00:17.7]} 41... Nd6 {[%clk 0:00:39.2]} 42. Kf3 {[%clk 0:00:17.7]} 42...
g4+ {[%clk 0:00:38.3]} 43. Kxg4 {[%clk 0:00:17.2]} 43... Nc4 {[%clk 0:00:37.6]}
44. b5 {[%clk 0:00:16.4]} 44... Nb6 {[%clk 0:00:32.1]} 45. Kf4 {[%clk
0:00:15.9]} 45... Na4 {[%clk 0:00:32.7]} 46. Ke5 {[%clk 0:00:15.6]} 46... Nb6
{[%clk 0:00:32.5]} 47. Kd6 {[%clk 0:00:15.8]} 47... Nc4+ {[%clk 0:00:32.6]} 48.
Kc7 {[%clk 0:00:15.8]} 48... Na5 {[%clk 0:00:31.6]} 49. Ne4 {[%clk 0:00:15.6]}
49... Kg8 {[%clk 0:00:30.8]} 50. b6 {[%clk 0:00:16.5]} 50... Kf7 {[%clk
0:00:31]} 51. b7 {[%clk 0:00:16.5]} 51... Nxb7 {[%clk 0:00:31.6]} 52. Kxb7
{[%clk 0:00:17.4]} 52... Ke6 {[%clk 0:00:31.8]} 53. Kc6 {[%clk 0:00:17.2]} 53...
Kf5 {[%clk 0:00:32.7]} 54. f3 {[%clk 0:00:17.3]} 54... Kf4 {[%clk 0:00:32.9]}
55. Nf6 {[%clk 0:00:16.5]} 1-0

[Event "Early-Titled-Tuesday-Blitz-August-29-2023"]
[Site "Chess.com"]
[Date "2023.08.29"]
[Round "2"]
[White "garfield_pg"]
[Black "Orest_Vovk"]
[Result "0-1"]
[WhiteElo "2358"]
[BlackElo "2534"]
[TimeControl "180+1"]
[EndTime "8:18:17 PDT"]
[Termination "Orest_Vovk won on time"]

1. d4 {[%clk 0:03:00.9]} 1... g6 {[%clk 0:02:55.7]} 2. e4 {[%clk 0:02:58.3]}
2... Nf6 {[%clk 0:02:55.6]} 3. e5 {[%clk 0:02:54]} 3... Nh5 {[%clk 0:02:55.6]}
4. Be2 {[%clk 0:02:50.8]} 4... d6 {[%clk 0:02:54.7]} 5. Bxh5 {[%clk 0:02:46.1]}
5... gxh5 {[%clk 0:02:53]} 6. Qxh5 {[%clk 0:02:44.7]} 6... dxe5 {[%clk 0:02:48]}
7. dxe5 {[%clk 0:02:24.3]} 7... Rg8 {[%clk 0:02:46.5]} 8. Qf3 {[%clk 0:01:58.7]}
8... Nc6 {[%clk 0:02:41.3]} 9. Bf4 {[%clk 0:01:55]} 9... Nd4 {[%clk 0:02:35]}
10. Qd1 {[%clk 0:01:28.4]} 10... Rxg2 {[%clk 0:02:27.9]} 11. Nf3 {[%clk
0:01:05.5]} 11... Nxf3+ {[%clk 0:02:24.9]} 12. Qxf3 {[%clk 0:01:04.8]} 12... Bg4
{[%clk 0:02:20.7]} 13. Qd3 {[%clk 0:01:01.4]} 13... Qxd3 {[%clk 0:02:15.9]} 14.
cxd3 {[%clk 0:01:02.3]} 14... O-O-O {[%clk 0:02:11.5]} 15. Nd2 {[%clk
0:00:44.1]} 15... Rxd3 {[%clk 0:02:06.1]} 16. Rc1 {[%clk 0:00:27.4]} 16... e6
{[%clk 0:02:04.2]} 17. Rc3 {[%clk 0:00:24]} 17... Rxc3 {[%clk 0:01:31]} 18. bxc3
{[%clk 0:00:24.9]} 18... Bc5 {[%clk 0:01:23.2]} 19. Bg3 {[%clk 0:00:20]} 19...
Bh3 {[%clk 0:01:13.8]} 20. Ne4 {[%clk 0:00:05.3]} 20... Be7 {[%clk 0:00:57.7]}
21. Nd2 {[%clk 0:00:05.4]} 21... h5 {[%clk 0:00:49.9]} 22. Nf3 {[%clk
0:00:03.2]} 22... Rxg3 {[%clk 0:00:37.7]} 23. hxg3 {[%clk 0:00:02.3]} 23... Bg2
{[%clk 0:00:37.9]} 24. Rxh5 {[%clk 0:00:01.9]} 24... Bxf3 {[%clk 0:00:38.1]} 25.
Rh7 {[%clk 0:00:02.2]} 25... Kd7 {[%clk 0:00:35.1]} 26. Rxf7 {[%clk 0:00:02.7]}
26... Bh5 {[%clk 0:00:33.9]} 27. Rh7 {[%clk 0:00:02.4]} 27... Bg6 {[%clk
0:00:34.2]} 28. Rg7 {[%clk 0:00:02.9]} 28... Bb1 {[%clk 0:00:34.1]} 29. g4
{[%clk 0:00:03.5]} 29... Bxa2 {[%clk 0:00:34.2]} 30. f4 {[%clk 0:00:04]} 30...
a5 {[%clk 0:00:33.1]} 31. f5 {[%clk 0:00:04.3]} 31... exf5 {[%clk 0:00:19.3]}
32. gxf5 {[%clk 0:00:05.2]} 32... Ke8 {[%clk 0:00:18.2]} 33. f6 {[%clk
0:00:03.2]} 33... Bd8 {[%clk 0:00:16.5]} 34. Kd2 {[%clk 0:00:02.4]} 34... a4
{[%clk 0:00:16.1]} 35. Rg4 {[%clk 0:00:01.9]} 35... b5 {[%clk 0:00:15.3]} 36.
Rb4 {[%clk 0:00:02]} 36... c6 {[%clk 0:00:14]} 37. Kd3 {[%clk 0:00:01.5]} 37...
Be6 {[%clk 0:00:13.7]} 38. Ke4 {[%clk 0:00:02]} 38... a3 {[%clk 0:00:12.9]} 39.
Rb1 {[%clk 0:00:01.7]} 39... a2 {[%clk 0:00:13.2]} 40. Rh1 {[%clk 0:00:01.7]}
40... Bd5+ {[%clk 0:00:09.5]} 0-1

[Event "Early-Titled-Tuesday-Blitz-August-29-2023"]
[Site "Chess.com"]
[Date "2023.08.29"]
[Round "2"]
[White "Firouzja2003"]
[Black "KononenkoD"]
[Result "1-0"]
[WhiteElo "3072"]
[BlackElo "2663"]
[TimeControl "180+1"]
[EndTime "8:18:18 PDT"]
[Termination "Firouzja2003 won by checkmate"]

1. e4 {[%clk 0:03:00.9]} 1... c6 {[%clk 0:02:49.6]} 2. Nc3 {[%clk 0:02:58.2]}
2... d5 {[%clk 0:02:50.5]} 3. Qf3 {[%clk 0:02:58.8]} 3... dxe4 {[%clk 0:02:49]}
4. Nxe4 {[%clk 0:02:59.1]} 4... Nf6 {[%clk 0:02:49.7]} 5. Bc4 {[%clk 0:02:58.9]}
5... Nbd7 {[%clk 0:02:50.3]} 6. d4 {[%clk 0:02:59.3]} 6... Nb6 {[%clk
0:02:50.2]} 7. Bd3 {[%clk 0:02:59.8]} 7... Qxd4 {[%clk 0:02:44.7]} 8. Ne2 {[%clk
0:03:00]} 8... Qd8 {[%clk 0:02:42.6]} 9. Bg5 {[%clk 0:02:58.5]} 9... Nbd7 {[%clk
0:02:32.1]} 10. O-O-O {[%clk 0:02:52]} 10... Nxe4 {[%clk 0:02:21.6]} 11. Bxe4
{[%clk 0:02:50.7]} 11... Qa5 {[%clk 0:02:21.6]} 12. h4 {[%clk 0:02:27.2]} 12...
Qxa2 {[%clk 0:02:18.6]} 13. Nc3 {[%clk 0:02:23.9]} 13... Qa1+ {[%clk 0:02:18.6]}
14. Nb1 {[%clk 0:02:24.3]} 14... e6 {[%clk 0:01:53]} 15. Rhe1 {[%clk 0:02:17.6]}
15... a5 {[%clk 0:01:47.4]} 16. Bxc6 {[%clk 0:02:07.1]} 16... Rb8 {[%clk
0:01:40.5]} 17. Rxd7 {[%clk 0:01:59.4]} 17... Bxd7 {[%clk 0:01:36.4]} 18. Bxd7+
{[%clk 0:01:59.8]} 18... Kxd7 {[%clk 0:01:36.9]} 19. Qxf7+ {[%clk 0:02:00.6]}
19... Kc6 {[%clk 0:01:35.3]} 20. Rxe6+ {[%clk 0:01:57.2]} 20... Bd6 {[%clk
0:01:35.9]} 21. Rxd6+ {[%clk 0:01:32.8]} 21... Kxd6 {[%clk 0:01:34.9]} 22. Bf4+
{[%clk 0:01:33.5]} 22... Kc5 {[%clk 0:01:25.4]} 23. Qc7+ {[%clk 0:01:32.8]}
23... Kb5 {[%clk 0:01:20.2]} 24. Qxg7 {[%clk 0:00:51.5]} 24... Ka6 {[%clk
0:01:12.7]} 25. Bxb8 {[%clk 0:00:40.6]} 25... Rxb8 {[%clk 0:01:13.6]} 26. Qxh7
{[%clk 0:00:41.2]} 26... Qa4 {[%clk 0:01:12.8]} 27. Qd3+ {[%clk 0:00:38.7]}
27... Qb5 {[%clk 0:01:01.3]} 28. Nc3 {[%clk 0:00:33.3]} 28... Qxd3 {[%clk
0:00:56.2]} 29. cxd3 {[%clk 0:00:34.2]} 29... b5 {[%clk 0:00:56.8]} 30. g4
{[%clk 0:00:32.1]} 30... Rg8 {[%clk 0:00:50.8]} 31. g5 {[%clk 0:00:23.5]} 31...
Rh8 {[%clk 0:00:50.9]} 32. f4 {[%clk 0:00:21.2]} 32... Rxh4 {[%clk 0:00:51.1]}
33. f5 {[%clk 0:00:21.9]} 33... Rf4 {[%clk 0:00:47.3]} 34. f6 {[%clk 0:00:21.3]}
34... Rf1+ {[%clk 0:00:29]} 35. Kd2 {[%clk 0:00:21.2]} 35... b4 {[%clk
0:00:22.1]} 36. Ne4 {[%clk 0:00:19.5]} 36... a4 {[%clk 0:00:22.1]} 37. g6 {[%clk
0:00:19.5]} 37... a3 {[%clk 0:00:22.2]} 38. bxa3 {[%clk 0:00:19.9]} 38... bxa3
{[%clk 0:00:22.2]} 39. g7 {[%clk 0:00:17]} 39... a2 {[%clk 0:00:16.1]} 40. g8=Q
{[%clk 0:00:17.4]} 40... a1=Q {[%clk 0:00:16.6]} 41. Qa8+ {[%clk 0:00:16.5]}
41... Kb6 {[%clk 0:00:16.4]} 42. Qb8+ {[%clk 0:00:17]} 42... Kc6 {[%clk
0:00:15.4]} 43. Qd6+ {[%clk 0:00:17.1]} 43... Kb5 {[%clk 0:00:14]} 44. Nc3+
{[%clk 0:00:15.1]} 44... Ka5 {[%clk 0:00:13]} 45. Qc5+ {[%clk 0:00:14.8]} 45...
Ka6 {[%clk 0:00:13.2]} 46. Qc6+ {[%clk 0:00:15.3]} 46... Ka7 {[%clk 0:00:12.3]}
47. Nb5+ {[%clk 0:00:15.3]} 47... Kb8 {[%clk 0:00:12.7]} 48. Qc7+ {[%clk
0:00:16.2]} 48... Ka8 {[%clk 0:00:13.3]} 49. Qc8# {[%clk 0:00:17.1]} 1-0